lending/lending_fUSD_20260119
["ID","MTS","AMOUNT","RATE_DAILY","PERIOD"]
[402725715,1768843180889,-500.0,0.00017397,2]
[402725716,1768843180910,-500.0,0.00017397,2]
[402725717,1768843180932,-477.0,0.00017397,2]
[402725718,1768843180954,-461.0,0.00017397,2]
[402725719,1768843180976,-1180.63593948,0.00017402,2]
[402725720,1768843180997,-8882.6885148,0.00017407,2]
[402725721,1768843181019,-166.66,0.00017436,2]
[402725722,1768843181041,-500.0,0.00017451,2]
[402725723,1768843181062,-500.0,0.00017451,2]
[402725724,1768843181083,-477.0,0.00017451,2]
[402725725,1768843181104,-461.0,0.00017451,2]
[402725726,1768843181126,-1180.63593943,0.00017457,2]
[402725727,1768843181150,-9211.34798985,0.00017462,2]
[402725728,1768843181171,-156.09421214,0.00017485,2]
[402725729,1768843181194,-2000.0,0.000175,2]
[402725730,1768843181215,-10037.2093901,0.00017501,2]
[402725731,1768843181239,-385.8,0.00017502,2]
[402725732,1768843181266,-500.0,0.00017506,2]
[402725733,1768843181288,-500.0,0.00017506,2]
[402725734,1768843181312,-477.0,0.00017506,2]
[402725735,1768843181336,-461.0,0.00017506,2]
[402725736,1768843181361,-1180.63593943,0.00017513,2]
[402725737,1768843181383,-213.28071249,0.00017516,2]
[402725738,1768843181404,-9552.16786547,0.00017517,2]
[402725739,1768843181433,-164.96505977,0.00017552,2]
[402725740,1768843181455,-500.0,0.00017561,2]
[402725741,1768843181476,-500.0,0.00017561,2]
[402725742,1768843181503,-477.0,0.00017561,2]
[402725743,1768843181525,-461.0,0.00017561,2]
[402725744,1768843181547,-1180.63593943,0.00017568,2]
[402725745,1768843181570,-9905.5980765,0.00017572,2]
[402725746,1768843181590,-250.0,0.00017607,2]
[402725747,1768843181612,-328.68188319,0.00017607,2]
[402725748,1768843181632,-500.0,0.00017616,2]
[402725749,1768843181654,-500.0,0.00017616,2]
[402725750,1768843181677,-477.0,0.00017616,2]
[402725751,1768843181697,-461.0,0.00017616,2]
[402725752,1768843181718,-500.0,0.00017616,2]
[402725753,1768843181739,-1180.63593943,0.00017623,2]
[402725754,1768843181760,-10272.10520533,0.00017627,2]
[402725755,1768843181780,-7974.03177846,0.00017629,2]
[402725756,1768843181801,-213.28071249,0.00017644,2]
[402725757,1768843181822,-317.0,0.00017644,2]
[402725758,1768843181843,-177.93556516,0.00017671,2]
[402725759,1768843181863,-538.70445232,0.00017671,2]
[402725760,1768843181884,-477.0,0.00017671,2]
[402725761,1768843181904,-461.0,0.00017671,2]
[402725762,1768843181925,-1180.63593943,0.00017679,2]
[402725763,1768843181947,-163.0,0.0001768,2]
[402725764,1768843181968,-10652.17309792,0.00017682,2]
[402725765,1768843181989,-317.0,0.00017684,2]
[402725766,1768843182011,-317.0,0.00017714,2]
[402725767,1768843182033,-385.8,0.00017724,2]
[402725768,1768843182053,-477.0,0.00017725,2]
[402725769,1768843182077,-461.0,0.00017725,2]
[402725770,1768843182100,-317.0,0.00017726,2]
[402725771,1768843182122,-1180.63593943,0.00017734,2]
[402725772,1768843182144,-5268.32543243,0.00017737,2]
[402725773,1768843182164,-317.0,0.00017747,2]
[402725774,1768843182184,-317.0,0.0001776,2]
[402725775,1768843182206,-317.0,0.0001776,2]
[402725776,1768843182227,-213.28071249,0.00017772,2]
[402725777,1768843182247,-166.66,0.00017775,2]
[402725778,1768843182268,-317.0,0.00017775,2]
[402725779,1768843182289,-477.0,0.0001778,2]
[402725780,1768843182312,-461.0,0.0001778,2]
[402725781,1768843182336,-1180.63593943,0.00017789,2]
[402725782,1768843182356,-1000.0,0.00017808,2]
[402725783,1768843182377,-1897.01916137,0.0001782,2]
[402725784,1768843182398,-477.0,0.00017835,2]
[402725785,1768843182421,-461.0,0.00017835,2]
[402725786,1768843182444,-317.0,0.00017843,2]
[402725787,1768843182467,-1180.63593943,0.00017845,2]
[402725788,1768843182491,-477.0,0.0001789,2]
[402725789,1768843182515,-461.0,0.0001789,2]
[402725790,1768843182538,-287.80279644,0.000179,2]
[402725791,1768843182559,-696.90336106,0.000179,2]
[402725792,1768843182579,-7974.03177846,0.000179,2]
[402725793,1768843182600,-164.96505977,0.000179,2]
[402725794,1768843182622,-6476.99702578,0.000179,2]
[402725795,1768843182645,-25000.0,0.000179,3]
[402725796,1768843182668,-211.46112662,0.000179,2]
[402725797,1768843182689,-213.28071249,0.000179,2]
[402725798,1768843182712,-211.4611266,0.000179,2]
[402725799,1768843182733,-211.4611266,0.000179,2]
[402725800,1768843182753,-211.4611266,0.000179,2]
[402725801,1768843182775,-358.75495528,0.000179,2]
[402725802,1768843182796,-211.4611266,0.000179,2]
[402725803,1768843182819,-211.4611266,0.000179,2]
[402725804,1768843182840,-211.4611266,0.000179,2]
[402725805,1768843182862,-211.4611266,0.000179,2]
[402725806,1768843182883,-211.4611266,0.000179,2]
[402725807,1768843182904,-211.4611266,0.000179,2]
[402725808,1768843182926,-211.4611266,0.000179,2]
[402725809,1768843182950,-211.4611266,0.000179,2]
[402725810,1768843182971,-211.4611266,0.000179,2]
[402725811,1768843182992,-211.4611266,0.000179,2]
[402725812,1768843183017,-281.34683604,0.000179,3]
[402725813,1768843183240,-211.4611266,0.000179,2]
[402725814,1768843183266,-1180.63593943,0.000179,2]
[402725815,1768843183292,-211.4611266,0.000179,2]
[402725816,1768843183316,-181.08010149,0.000179,2]
[402725817,1768843183340,-373.07297731,0.000179,2]
[402725818,1768843183363,-533.88981491,0.000179,2]
[402725819,1768843183385,-194.72792766,0.000179,2]
[402725820,1768843183409,-151.0,0.000179,2]
[402725821,1768843183437,-230.66671,0.0001793,2]
[402725822,1768843183464,-230.66671,0.0001793,2]
[402725823,1768843183487,-230.66672,0.0001793,2]
[402725824,1768843183511,-230.66672,0.0001793,2]
[402725825,1768843183534,-230.66671,0.0001793,2]
[402725826,1768843183557,-884.1241,0.0001793,2]
[402725827,1768843183577,-884.12411,0.0001793,2]
[402725828,1768843183598,-884.12411,0.0001793,2]
[402725829,1768843183619,-884.12411,0.0001793,2]
[402725830,1768843183639,-884.12411,0.0001793,2]
[402725831,1768843183661,-884.1241,0.0001793,2]
[402725832,1768843183682,-230.66671,0.0001793,2]
[402725833,1768843183705,-477.0,0.00017944,2]
[402725834,1768843183728,-461.0,0.00017944,2]
[402725835,1768843183749,-385.8,0.00017945,2]
[402725836,1768843183770,-151.0,0.00017954,2]
[402725837,1768843183791,-18412.7086809,0.00017957,2]
[402725838,1768843183814,-148445.2526628,0.00017957,2]
[402725840,1768843235474,-414.07024098,0.00015464,2]
[402725841,1768843236942,-209.97166445,0.00015464,2]
[402725842,1768843239063,-283.65919852,0.00015464,2]
[402725843,1768843241972,-318.22475805,0.00015464,2]
[402725844,1768843243530,-446.58901914,0.00015464,2]
[402725845,1768843244960,-237.04970593,0.00015464,2]
[402725846,1768843246579,-217.99090718,0.00015464,2]
[402725847,1768843249128,-230.15741242,0.00015464,2]
[402725848,1768843254155,-179.75030881,0.00015464,2]
[402725849,1768843257598,-309.84955089,0.00015464,2]
[402725850,1768843259287,-296.54979534,0.00015464,2]
[402725851,1768843260856,-223.04563829,0.00015464,2]
[402725852,1768843260879,-83.82541552,0.00015464,2]
[402725853,1768843262850,-159.10899073,0.00015464,2]
[402725854,1768843265337,-283.29410064,0.00015464,2]
[402725855,1768843268433,-176.2629968,0.00015464,2]
[402725856,1768843270999,-264.87733376,0.00015464,2]
[402725868,1768843660660,7168.02301235,0.0002739,120]
[402725869,1768843668952,7857.49765433,0.0002739,120]
[402725878,1768843831739,-32.63116255,0.00015464,2]
[402725879,1768843831750,-510.98377513,0.00015563,2]
[402725880,1768843831761,-300.0,0.00016176,2]
[402725881,1768843831771,-1200.0,0.00016176,2]
[402725882,1768843831781,-293.69430232,0.00016177,2]
[402725883,1768843831817,-20603.28839768,0.00016177,2]
[402725884,1768843831827,-8551.06708656,0.00016177,2]
[402725885,1768843831837,-5010.08,0.00016799,2]
[402725886,1768843831848,-3002.22,0.00016928,2]
[402725887,1768843831858,-19782.22610136,0.00017,2]
[402725888,1768843831868,-376.36599667,0.0001701,2]
[402725889,1768843831878,-151.0,0.00017039,2]
[402725890,1768843831888,-151.0,0.00017039,2]
[402725891,1768843831898,-151.0,0.00017041,2]
[402725892,1768843831907,-151.0,0.00017041,2]
[402725893,1768843831917,-150.0,0.00017175,2]
[402725894,1768843831927,-1872.0,0.00017281,2]
[402725895,1768843831938,-419.18807475,0.00017316,2]
[402725896,1768843831947,-578.20924308,0.00017352,2]
[402725897,1768843831957,-359.76179104,0.00017352,2]
[402725898,1768843831967,-166.66,0.00017356,2]
[402725899,1768843831977,-150.99,0.00017356,2]
[402725900,1768843831987,-4716.27,0.00017356,2]
[402725901,1768843831997,-557.47,0.00017356,5]
[402725902,1768843832006,-749.31,0.00017356,2]
[402725903,1768843832016,-322.6107,0.00017479,2]
[402725904,1768843832026,-203.24462891,0.00017479,2]
[402725905,1768843832035,-174.61919141,0.00017479,2]
[402725906,1768843832045,-200.0,0.00017479,2]
[402725907,1768843832055,-620.0,0.00017479,2]
[402725908,1768843832065,-646.65982734,0.00017479,2]
[402725909,1768843832076,-500.0,0.00017479,2]
[402725910,1768843832086,-500.0,0.00017479,2]
[402725911,1768843832096,-500.0,0.00017479,2]
[402725912,1768843832106,-4444.0,0.00017479,2]
[402725913,1768843832116,-500.0,0.00017479,2]
[402725914,1768843832126,-151.0,0.00017479,2]
[402725915,1768843832135,-514.84070869,0.00017479,2]
[402725916,1768843832145,-301.69227512,0.00017479,2]
[402725917,1768843832155,-289.3,0.00017491,2]
[402725918,1768843832165,-8551.06708656,0.00017499,2]
[402725919,1768843832173,-302.94097839,0.000175,3]
[402725920,1768843832183,-1000.0,0.00017534,2]
[402725921,1768843832193,-2596.832,0.00017617,2]
[402725922,1768843832202,-227.639,0.00017647,2]
[402725923,1768843832211,-150.0,0.00017672,2]
[402725924,1768843832221,-420.0,0.00017682,2]
[402725925,1768843832231,-150.0,0.00017699,2]
[402725926,1768843832241,-8235.63,0.00017713,2]
[402725927,1768843832251,-1835.03,0.00017713,2]
[402725928,1768843832262,-7119.140002,0.00017713,2]
[402725929,1768843832274,-466.445,0.00017713,2]
[402725930,1768843832294,-1498.41572974,0.00017713,2]
[402725931,1768843832325,-915.98926826,0.00017713,2]
[402725932,1768843832335,-183.24,0.00017713,2]
[402725933,1768843832344,-289.3,0.00017714,2]
[402725934,1768843832354,-150.0,0.00017727,2]
[402725935,1768843832363,-150.0,0.00017754,2]
[402725936,1768843832373,-480.0,0.00017771,2]
[402725937,1768843832382,-178.0,0.00017782,2]
[402725938,1768843832392,-1000.0,0.00017808,2]
[402725939,1768843832402,-191.91003692,0.00017809,2]
[402725940,1768843832411,-1594.80635571,0.00017857,2]
[402725941,1768843832420,-1000.0,0.00017861,2]
[402725942,1768843832430,-1594.80635569,0.00017862,2]
[402725943,1768843832440,-1594.80635569,0.00017867,2]
[402725944,1768843832450,-1594.80635569,0.00017871,2]
[402725945,1768843832459,-1594.80635569,0.00017876,2]
[402725946,1768843832469,-1594.80635569,0.00017881,2]
[402725947,1768843832479,-1594.80635569,0.00017886,2]
[402725948,1768843832489,-2186.75246408,0.00017889,2]
[402725949,1768843832499,-1594.80635569,0.0001789,2]
[402725950,1768843832508,-1594.80635569,0.00017895,2]
[402725951,1768843832517,-3820.9869228,0.00017896,2]
[402725952,1768843832527,-300.0,0.00017899,2]
[402725953,1768843832536,-300.0,0.00017899,2]
[402725954,1768843832546,-300.0,0.00017899,2]
[402725955,1768843832555,-12779.81500844,0.000179,3]
[402725956,1768843832564,-1594.80635569,0.000179,2]
[402725957,1768843832574,-169.16890128,0.000179,2]
[402725958,1768843832583,-169.16890128,0.000179,2]
[402725959,1768843832593,-1076.26486579,0.000179,2]
[402725960,1768843832606,-169.16890128,0.000179,2]
[402725961,1768843832615,-169.16890128,0.000179,2]
[402725962,1768843832624,-169.16890128,0.000179,2]
[402725963,1768843832633,-373.07297731,0.000179,2]
[402725964,1768843832643,-289.3,0.00017936,2]
[402725965,1768843832653,-128755.115522,0.00017944,2]
[402725966,1768843832662,-151.0,0.00017954,2]
[402725967,1768843832673,-185.5423986,0.00017956,2]
[402725968,1768843832682,-169.86544029,0.00017956,2]
[402725969,1768843832692,-447904.2197571,0.00017957,2]
[402725970,1768843832701,-200.0,0.00017957,2]
[402725971,1768843832711,-200.0,0.00017957,2]
[402725972,1768843832720,-500.0,0.00017973,2]
[402725973,1768843832729,-500.0,0.00017973,2]
[402725974,1768843832739,-200.0,0.00017973,2]
[402725975,1768843832748,-635.92042862,0.00017977,2]
[402725976,1768843832757,-500.0,0.00017982,2]
[402725977,1768843832766,-2000.0,0.0001799,2]
[402725978,1768843832775,-2000.0,0.0001799,2]
[402725979,1768843832784,-1593.735,0.0001799,2]
[402725980,1768843833035,-1000.0,0.0001799,2]
[402725981,1768843833046,-1000.0,0.0001799,2]
[402725982,1768843833055,-1000.0,0.0001799,2]
[402725983,1768843833065,-1000.0,0.0001799,2]
[402725984,1768843833074,-244.64822253,0.0001799,2]
[402725985,1768843833083,-150.0,0.00017992,2]
[402725986,1768843833093,-204.18,0.00017992,2]
[402725987,1768843833102,-168.48,0.00017992,2]
[402725988,1768843833111,-1115.66,0.00017992,2]
[402725989,1768843833121,-343.74,0.00017992,2]
[402725990,1768843833131,-198.09,0.00017992,2]
[402725991,1768843833140,-557.83,0.00017993,2]
[402725992,1768843833149,-324.46769947,0.00017995,2]
[402725993,1768843833158,-448.98884347,0.00017995,2]
[402725994,1768843833167,-151.0,0.00017997,2]
[402725995,1768843833177,-880.97091021,0.00017999,2]
[402725996,1768843833186,-300.0,0.00017999,2]
[402725997,1768843833195,-155.0,0.00017999,2]
[402725998,1768843833204,-300.0,0.00017999,2]
[402725999,1768843833213,-300.0,0.00017999,2]
[402726000,1768843833223,-11791.74278883,0.00017999,2]
[402726001,1768843833232,-13671.12709858,0.00017999,2]
[402726002,1768843833241,-300.0,0.00017999,2]
[402726003,1768843833251,-593447.71590564,0.00018,2]
[402726004,1768843833262,-3879.61872,0.00018,2]
[402726005,1768843833321,-204.60295987,0.00016798,2]
[402726006,1768843833331,-20910.64695074,0.00018,2]
[402726013,1768843838515,-12953.99405156,0.000179,2]
[402726014,1768843838525,-1260923.43359134,0.00018,2]
[402726015,1768843838545,-361.04661068,0.00018,2]
[402726016,1768843838556,-1560.55912574,0.00018,2]
[402726017,1768843838588,-13920.0,0.00018,2]
[402726019,1768843840310,-0.0647988,0.00018,2]
[402726020,1768843840329,-21568.73268217,0.00018,2]
[402726021,1768843840342,-1793.79511815,0.00018,2]
[402726023,1768843840392,-3738.47688279,0.00018,2]
[402726024,1768843840403,-453.16650001,0.00018,2]
[402726025,1768843840425,-336.19000005,0.00018,2]
[402726026,1768843840437,-67004.25223305,0.00018,2]
[402726027,1768843840448,-49116.80386235,0.00018,2]
[402726028,1768843840459,-4433.27770198,0.00018,2]
[402726039,1768843842790,-714.19900082,0.00018,2]
[402726040,1768843843082,-1417.67063,0.00018,2]
[402726041,1768843843094,-1573.28442931,0.00018,2]
[402726044,1768843845625,-400.0,0.00018,2]
[402726045,1768843846042,-697.35763997,0.00018,2]
[402726047,1768843846054,-751.1104561,0.00018,2]
[402726049,1768843846070,-407.00385593,0.00018,2]
[402726050,1768843846081,-2988.33766693,0.00018,2]
[402726051,1768843846092,-521.9457999,0.00018,2]
[402726052,1768843846103,-4045.31876907,0.00018,2]
[402726054,1768843849091,-1173.45658843,0.00018,2]
[402726055,1768843850181,-1583.11446894,0.00018,2]
[402726056,1768843850193,-4665.95,0.00018,2]
[402726057,1768843850205,-935.57953024,0.00018,2]
[402726058,1768843850216,-1803.54678559,0.00018,2]
[402726083,1768844294018,170.49,0.00013345,2]
[402726108,1768844820384,1203.9266429,0.00027397,120]
[402726119,1768845031794,-292.65503256,0.00015573,2]
[402726120,1768845031804,-395.9703,0.00015573,2]
[402726121,1768845031814,-1215.09469634,0.00015977,2]
[402726122,1768845031843,-15556.68107439,0.00015977,2]
[402726123,1768845031855,-3455.44836013,0.00015977,2]
[402726124,1768845031992,-305247.13496914,0.00015977,2]
[402726125,1768845032002,-300.0,0.00016066,2]
[402726126,1768845032011,-1200.0,0.00016066,2]
[402726127,1768845032021,-18529.61036417,0.00016066,2]
[402726128,1768845032031,-500.0,0.00016067,2]
[402726129,1768845032041,-500.0,0.00016067,2]
[402726130,1768845032051,-500.0,0.00016067,2]
[402726131,1768845032060,-151.0,0.00016067,2]
[402726132,1768845032070,-151.0,0.00016067,2]
[402726133,1768845032080,-151.0,0.00016067,2]
[402726134,1768845032089,-500.0,0.00016076,2]
[402726135,1768845032099,-500.0,0.00016076,2]
[402726136,1768845032108,-459.77497061,0.00016076,2]
[402726137,1768845032119,-500.0,0.00016076,2]
[402726138,1768845032128,-500.0,0.00016076,2]
[402726139,1768845032137,-500.0,0.00016076,2]
[402726140,1768845032148,-500.0,0.00016076,2]
[402726142,1768845032157,-500.0,0.00016076,2]
[402726144,1768845032168,-550.0,0.00016076,2]
[402726145,1768845032178,-3335.2,0.00016116,2]
[402726146,1768845032187,-150.0,0.00016579,2]
[402726147,1768845032199,-850.0,0.00016615,2]
[402726148,1768845032208,-2887.38,0.00016682,2]
[402726149,1768845032219,-150.99,0.00016682,2]
[402726150,1768845032239,-334.04130392,0.00016682,2]
[402726151,1768845032257,-165.95869608,0.00016682,2]
[402726152,1768845032276,-200.0,0.000167,2]
[402726153,1768845032287,-1351.98721402,0.00016715,2]
[402726154,1768845032299,-1711.69278598,0.00016715,2]
[402726155,1768845032309,-153.59,0.00016783,2]
[402726156,1768845032320,-748.0,0.00016841,2]
[402726157,1768845032330,-161.12,0.00016842,2]
[402726158,1768845032339,-250.0,0.00017,2]
[402726159,1768845032349,-150.0,0.00017008,2]
[402726160,1768845032358,-153.59,0.00017063,2]
[402726161,1768845032368,-200.0,0.00017088,2]
[402726162,1768845032377,-578.20924308,0.00017092,2]
[402726163,1768845032386,-719.32434549,0.00017092,2]
[402726164,1768845032394,-514.84070869,0.00017092,2]
[402726165,1768845032404,-4444.0,0.00017092,2]
[402726166,1768845032412,-181.0801015,0.00017092,2]
[402726167,1768845032422,-151.0,0.00017092,2]
[402726168,1768845032431,-359.76179104,0.00017092,2]
[402726169,1768845032441,-151.0,0.00017092,2]
[402726170,1768845032451,-151.0,0.00017092,2]
[402726171,1768845032460,-151.0,0.00017092,2]
[402726172,1768845032469,-151.0,0.00017092,2]
[402726173,1768845032479,-151.0,0.00017092,2]
[402726174,1768845032488,-151.0,0.00017092,2]
[402726175,1768845032498,-151.0,0.00017092,2]
[402726176,1768845032507,-151.0,0.00017092,2]
[402726177,1768845032516,-151.0,0.00017092,2]
[402726178,1768845032526,-151.0,0.00017092,2]
[402726179,1768845032535,-151.0,0.00017092,2]
[402726180,1768845032544,-151.0,0.00017092,2]
[402726181,1768845032554,-151.0,0.00017092,2]
[402726182,1768845032563,-200.72,0.00017096,2]
[402726183,1768845032572,-1000.0,0.000172,2]
[402726184,1768845032861,-53.50049312,0.0001726,2]
[402726185,1768845033049,-374.45875249,0.0001726,2]
[402726186,1768845033062,-291.47,0.0001726,2]
[402726187,1768845033075,-280.57075439,0.0001726,2]
[402726188,1768845033084,-143.46145809,0.00017343,2]
[402726189,1768845037852,-151.0,0.0001681,2]
[402726190,1768845037862,-151.0,0.0001681,2]
[402726191,1768845037871,-3.31682955,0.000171,2]
[402726192,1768845037881,-246.68317045,0.000171,2]
[402726193,1768845037890,-10.12854191,0.00017343,2]
[402726194,1768845037900,-179.62,0.00017378,2]
[402726195,1768845037908,-908.74925392,0.00017392,2]
[402726196,1768845037922,-828.85000683,0.00017392,2]
[402726197,1768845037963,-1373.55520249,0.00017392,2]
[402726198,1768845037974,-1306.8598632,0.00017392,2]
[402726199,1768845037986,-14111.59603773,0.00017392,2]
[402726200,1768845037998,-200.0,0.00017456,2]
[402726201,1768845038008,-992.0,0.0001747,2]
[402726202,1768845038018,-2000.0,0.000175,2]
[402726203,1768845038028,-217.0,0.00017505,2]
[402726204,1768845038038,-1000.0,0.00017534,2]
[402726205,1768845038048,-420.0,0.00017564,2]
[402726206,1768845038058,-992.0,0.00017588,2]
[402726207,1768845038067,-153.59,0.00017622,2]
[402726208,1768845038077,-168.0,0.00017637,2]
[402726209,1768845038087,-533.88981491,0.0001764,2]
[402726210,1768845038097,-426.99437803,0.0001764,2]
[402726211,1768845038107,-500.0,0.00017671,2]
[402726212,1768845038117,-503.0,0.00017671,2]
[402726213,1768845038127,-1000.0,0.00017719,2]
[402726214,1768845038137,-217.0,0.00017726,2]
[402726215,1768845038146,-182.111,0.00017727,2]
[402726216,1768845038157,-2077.465,0.00017737,2]
[402726217,1768845038166,-1000.0,0.00017808,2]
[402726218,1768845038176,-1000.0,0.00017844,2]
[402726220,1768845038186,-150.37712172,0.00017899,2]
[402726222,1768845038196,-150.37712166,0.00017899,2]
[402726224,1768845038205,-150.37712166,0.00017899,2]
[402726226,1768845038214,-150.37712166,0.00017899,2]
[402726228,1768845038223,-150.37712166,0.000179,2]
[402726230,1768845038233,-150.37712166,0.000179,2]
[402726232,1768845038243,-150.37712166,0.000179,2]
[402726234,1768845038252,-2263.7834445,0.000179,2]
[402726236,1768845038262,-1000.0,0.000179,2]
[402726238,1768845038271,-9099.23692888,0.000179,2]
[402726240,1768845038281,-150.37712166,0.000179,2]
[402726242,1768845038291,-2000.0,0.0001794,2]
[402726245,1768845038301,-2000.0,0.0001794,2]
[402726246,1768845038311,-2000.0,0.0001794,2]
[402726249,1768845038321,-2000.0,0.0001794,2]
[402726250,1768845038331,-2000.0,0.0001794,2]
[402726253,1768845038347,-2000.0,0.0001794,2]
[402726255,1768845038357,-2000.0,0.0001794,2]
[402726257,1768845038367,-2000.0,0.0001794,2]
[402726259,1768845038377,-217.0,0.00017948,2]
[402726261,1768845038387,-200.72,0.00017951,2]
[402726263,1768845038398,-500.0,0.00017973,2]
[402726266,1768845038409,-500.0,0.00017973,2]
[402726268,1768845038418,-150.0,0.0001799,2]
[402726270,1768845038428,-315.41,0.0001799,2]
[402726272,1768845038438,-557.83,0.0001799,2]
[402726274,1768845038448,-330.26,0.0001799,2]
[402726276,1768845038459,-150.0,0.0001799,2]
[402726278,1768845038468,-150.0,0.0001799,2]
[402726280,1768845038478,-557.83,0.0001799,2]
[402726282,1768845038487,-150.0,0.0001799,2]
[402726284,1768845038497,-150.0,0.0001799,2]
[402726286,1768845038506,-557.83,0.0001799,2]
[402726288,1768845038516,-150.0,0.0001799,2]
[402726290,1768845038525,-150.0,0.0001799,2]
[402726292,1768845038535,-150.0,0.0001799,2]
[402726294,1768845038545,-150.0,0.0001799,2]
[402726296,1768845038558,-150.0,0.0001799,2]
[402726298,1768845038568,-557.83,0.0001799,2]
[402726300,1768845038579,-150.0,0.0001799,2]
[402726302,1768845038590,-150.0,0.0001799,2]
[402726304,1768845038600,-171.87,0.0001799,2]
[402726306,1768845038610,-179.62,0.0001799,2]
[402726308,1768845038620,-557.83,0.0001799,2]
[402726310,1768845038630,-171.87,0.0001799,2]
[402726312,1768845038640,-179.62,0.0001799,2]
[402726314,1768845038649,-557.83,0.0001799,2]
[402726316,1768845038658,-171.87,0.0001799,2]
[402726318,1768845038668,-179.62,0.0001799,2]
[402726320,1768845038677,-557.83,0.0001799,2]
[402726323,1768845038687,-171.87,0.0001799,2]
[402726324,1768845038697,-151.0,0.00017997,2]
[402726325,1768845038707,-160.15827204,0.00017999,2]
[402726326,1768845038716,-5800.0,0.00017999,2]
[402726327,1768845038725,-300.0,0.00017999,2]
[402726328,1768845038735,-3947.7393424,0.00017999,2]
[402726329,1768845038744,-155.0,0.00017999,2]
[402726330,1768845038753,-127859.0953079,0.00017999,2]
[402726331,1768845038762,-300.0,0.00017999,2]
[402726332,1768845038772,-300.0,0.00017999,2]
[402726333,1768845038781,-500.0,0.00017999,2]
[402726334,1768845038790,-500.0,0.00017999,2]
[402726335,1768845038800,-300.0,0.00017999,2]
[402726336,1768845038809,-300.0,0.00017999,2]
[402726337,1768845038819,-27605.4785797,0.00017999,2]
[402726339,1768845038829,-4340.0,0.00018,2]
[402726340,1768845038839,-1035103.73256347,0.00018,2]
[402726341,1768845038865,-305.91701005,0.00018,2]
[402726342,1768845038877,-3419.43099117,0.00018,2]
[402726343,1768845038890,-2742.36906112,0.00018,2]
[402726355,1768845040060,-279.139,0.00018,2]
[402726361,1768845040114,-488.63466095,0.00018,2]
[402726378,1768845043114,-4317.9980172,0.000179,2]
[402726379,1768845043129,-1204036.47090012,0.00018,2]
[402726380,1768845043153,-1410.6590096,0.00018,2]
[402726381,1768845043183,-1143.41459627,0.00018,2]
[402726382,1768845043201,-326.85258941,0.00018,2]
[402726383,1768845043221,-634.06,0.00018,2]
[402726384,1768845043239,-561.26918298,0.00018,2]
[402726385,1768845043256,-281.34209607,0.00018,2]
[402726386,1768845043280,-1334.00376711,0.00018,2]
[402726393,1768845045864,-356.3220009,0.00018,2]
[402726398,1768845220423,1600.0,0.00025022,120]
[402726429,1768845710206,150.0,0.00027397,120]
[402726452,1768846064381,209.0,9.989e-05,2]
[402726453,1768846064672,209.0,9.989e-05,2]
[402726454,1768846064962,209.0,9.989e-05,2]
[402726455,1768846065275,209.0,9.989e-05,2]
[402726456,1768846066741,209.0,9.989e-05,2]
[402726457,1768846066826,209.0,9.989e-05,2]
[402726458,1768846066914,209.0,9.989e-05,2]
[402726459,1768846066973,209.0,9.989e-05,2]
[402726469,1768846213380,14241.95,0.00013942,2]
[402726475,1768846231994,-166.66,0.00015847,2]
[402726476,1768846232004,-300.0,0.00015875,2]
[402726477,1768846232014,-389.97891136,0.00015875,2]
[402726478,1768846232025,-810.02108864,0.00015875,2]
[402726479,1768846232042,-482.22462596,0.00016019,2]
[402726480,1768846232054,-17.77537404,0.00016019,2]